bitfinex/quotes_ETHUSD_20240630
["timestamp","ask_amount","ask_price","bid_price","bid_amount"]
[1719754896230,0.82591155,3396.9,3396.0,2.042]
[1719754896458,2.3584,3396.8,3396.0,2.042]
[1719754896678,0.82591155,3396.7,3396.0,2.042]
[1719754896889,0.82591155,3396.7,3395.9,2.042]
[1719754897177,2.3584,3396.6,3395.7,2.042]
[1719754897552,3.18431155,3396.6,3395.7,2.042]
[1719754900344,3.18431155,3396.6,3395.3,2.3004]
[1719754900549,3.18431155,3396.6,3395.8,2.042]
[1719754901900,0.82591155,3396.5,3395.4,0.23004]
[1719754902175,0.82591155,3396.5,3395.5,2.042]
[1719754903172,2.3584,3396.4,3395.5,2.042]
[1719754903361,0.82591155,3396.3,3395.5,2.042]
[1719754905099,0.82591155,3396.3,3395.6,0.05889264]
[1719754905388,0.82591155,3396.3,3395.9,2.042]
[1719754908093,5.3584,3396.4,3395.9,2.042]
[1719754908094,3.0,3396.4,3395.9,2.042]
[1719754908298,3.0,3396.4,3396.0,0.2042]
[1719754908449,5.3797,3396.7,3396.0,0.2042]
[1719754908650,0.82591155,3396.6,3396.0,0.2042]
[1719754908849,3.82591155,3396.6,3396.0,0.2042]
[1719754909138,3.82591155,3396.6,3395.5,2.3004]
[1719754909275,3.82591155,3396.6,3395.8,2.042]
[1719754909947,3.82591155,3396.6,3396.5,0.851]
[1719754910548,3.82591155,3396.6,3395.5,2.3004]
[1719754910749,3.82591155,3396.6,3396.5,0.851]
[1719754913652,3.0,3396.6,3395.7,2.3315]
[1719754913849,2.3797,3396.7,3396.5,0.851]
[1719754914048,3.73586822,3397.0,3396.5,0.851]
[1719754914049,6.11556822,3397.0,3396.5,0.851]
[1719754914360,6.11556822,3397.0,3396.8,0.851]
[1719754914579,6.11556822,3397.0,3395.9,2.3315]
[1719754914855,2.3797,3396.9,3395.6,2.3315]
[1719754915052,0.73586822,3396.8,3396.3,0.851]
[1719754915257,2.3797,3396.7,3395.6,2.3315]
[1719754915501,0.73586822,3396.6,3396.5,0.851]
[1719754915806,0.73586822,3396.6,3395.8,2.043]
[1719754917588,5.3797,3396.7,3395.8,2.043]
[1719754917920,2.3797,3396.7,3395.8,2.043]
[1719754918111,2.3797,3396.7,3395.9,0.43745]
[1719754920214,3.11556822,3396.7,3395.8,2.043]
[1719754921762,0.73586822,3396.6,3395.8,2.043]
[1719754922975,0.73586822,3396.6,3395.9,0.05888806]
[1719754925665,0.73586822,3396.6,3395.9,0.05888602]
[1719754926282,0.73586822,3396.6,3395.9,0.50222462]
[1719754927357,0.73586822,3396.6,3396.2,2.043]
[1719754929420,3.0,3396.8,3396.3,0.05888057]
[1719754929593,5.44050008,3396.9,3396.2,2.043]
[1719754929908,0.73586822,3396.7,3396.2,2.043]
[1719754930892,2.4105,3396.6,3396.2,2.043]
[1719754931091,3.14636822,3396.6,3395.8,4.5079]
[1719754931422,3.14636822,3396.6,3395.8,2.043]
[1719754931576,3.72244824,3396.6,3395.8,2.043]
[1719754933275,0.03000008,3396.5,3395.8,2.043]
[1719754935426,3.29236822,3396.6,3395.8,2.043]
[1719754935849,3.29236822,3396.6,3396.5,0.851]
[1719754940743,0.146,3396.6,3396.5,0.851]
[1719754940954,0.70465001,3396.6,3396.5,0.851]
[1719754942098,0.70465001,3396.6,3395.8,2.4649]
[1719754942421,0.146,3396.6,3396.4,0.851]
[1719754942632,2.4105,3396.5,3396.4,0.851]
[1719754943341,2.44050008,3396.5,3396.4,0.851]
[1719754944257,2.4105,3396.5,3396.4,0.851]
[1719754944546,3.77860505,3396.5,3396.3,0.851]
[1719754944700,0.03000008,3396.4,3396.3,0.851]
[1719754947144,0.7658683,3396.4,3396.3,0.851]
[1719754951769,3.7658683,3396.4,3395.1,2.4649]
[1719754952062,3.7658683,3396.4,3396.2,0.851]
[1719754952063,0.73586822,3396.3,3396.2,0.851]
[1719754954578,0.73586822,3396.3,3395.1,2.4649]
[1719754954863,2.31340008,3396.2,3395.8,0.851]
[1719754955033,1.04079505,3396.1,3395.8,0.851]
[1719754955233,0.03000008,3396.0,3395.8,0.851]
[1719754955476,0.7658683,3396.0,3395.8,0.851]
[1719754958094,0.73586822,3396.0,3395.8,0.851]
[1719754966297,2.2834,3395.9,3394.7,0.05889145]
[1719754966454,0.73586822,3395.8,3395.6,0.851]
[1719754967078,0.73586822,3395.8,3394.0,3.06271344]
[1719754967079,0.73586822,3395.8,3395.4,0.851]
[1719754967998,0.73586822,3395.8,3395.6,0.851]
[1719754968378,0.73586822,3395.8,3394.3,0.60737631]
[1719754968379,0.73586822,3395.8,3394.9,2.4461]
[1719754968579,0.73586822,3395.8,3395.6,0.851]
[1719754968902,0.73586822,3395.8,3394.3,0.60737631]
[1719754968903,2.45280008,3395.7,3394.3,0.60737631]
[1719754969115,3.0,3396.0,3395.5,0.851]
[1719754969116,0.73586822,3395.6,3395.5,0.851]
[1719754975664,0.73586822,3395.6,3394.1,2.4461]
[1719754975980,0.73586822,3395.6,3395.5,0.851]
[1719754976200,1.35473505,3395.6,3395.5,0.851]
[1719754977602,0.73586822,3395.6,3395.5,0.851]
[1719754980310,0.73586822,3395.6,3395.3,0.851]
[1719754981721,3.0,3395.9,3395.5,0.851]
[1719754982008,7.33,3396.0,3395.7,0.851]
[1719754982870,7.33,3396.0,3395.5,0.851]
[1719754983071,7.33,3396.0,3395.4,2.28]
[1719754983370,7.33,3396.0,3395.6,0.851]
[1719754983580,7.33,3396.0,3395.4,2.28]
[1719754983805,7.33,3396.0,3395.5,0.851]
[1719754987674,6.22650155,3396.3,3395.5,0.851]
[1719754987873,1.46695179,3396.2,3395.5,0.851]
[1719754988223,4.46695179,3396.2,3395.5,0.851]
[1719754990199,4.43695179,3396.2,3395.5,0.851]
[1719754992824,2.3199,3396.1,3395.4,0.851]
[1719754993129,0.75920163,3396.0,3395.4,0.851]
[1719754993289,3.75920163,3396.0,3395.4,0.851]
[1719754993941,3.75920163,3396.0,3395.2,0.851]
[1719754996194,3.03000008,3396.0,3395.2,0.851]
[1719754996526,3.03000008,3396.0,3395.4,0.851]
[1719754996833,0.03000008,3396.0,3395.4,0.851]
[1719754997826,0.75920163,3396.0,3395.4,0.851]
[1719754998035,3.75920163,3396.0,3395.4,0.851]
[1719754998543,0.72920155,3395.9,3395.4,0.851]
[1719755000020,0.72920155,3395.9,3395.5,0.05889832]
[1719755000200,3.0,3396.0,3395.6,1.18466983]
[1719755000393,3.0,3396.2,3395.6,1.18466983]
[1719755000589,0.72920155,3396.2,3395.6,0.851]
[1719755000795,3.72920155,3396.2,3395.6,0.851]
[1719755001193,0.72920155,3396.2,3395.6,0.851]
[1719755002055,1.26845903,3396.3,3396.1,0.851]
[1719755002210,7.33,3396.4,3396.1,0.851]
[1719755002390,7.33,3396.4,3396.3,0.851]
[1719755002593,7.33,3396.8,3396.3,0.851]
[1719755003292,7.33,3396.8,3396.4,0.851]
[1719755003491,3.0,3396.7,3396.4,0.851]
[1719755004748,1.26805817,3397.1,3396.6,0.851]
[1719755004954,0.03000008,3397.4,3396.6,0.851]
[1719755005256,2.38470008,3397.5,3396.6,0.851]
[1719755006302,2.3547,3397.5,3396.6,0.851]
[1719755007618,2.82263601,3397.5,3396.6,0.851]
[1719755007833,3.0,3397.4,3396.6,0.851]
[1719755008019,3.0,3397.4,3396.8,0.851]
[1719755008356,0.46793601,3397.5,3396.9,0.05887094]
[1719755008948,0.46793601,3397.5,3397.2,0.851]
[1719755009458,0.46793601,3397.5,3397.1,0.05886734]
[1719755010011,0.851,3397.8,3397.1,0.05886734]
[1719755010211,0.31328001,3397.7,3397.1,0.05886734]
[1719755011473,0.851,3397.8,3397.1,0.05886734]
[1719755012125,0.03000008,3397.7,3397.1,0.05886734]
[1719755012451,0.03000008,3397.7,3397.0,2.4618]
[1719755012656,0.851,3397.3,3395.8,2.4618]
[1719755012839,0.49793609,3397.2,3396.3,0.851]
[1719755013158,0.49793609,3397.2,3396.0,2.4618]
[1719755013322,0.851,3397.1,3396.2,0.851]
[1719755013521,1.31893601,3397.1,3396.2,1.18228]
[1719755013765,0.03000008,3397.0,3396.2,1.18228]
[1719755013969,2.28180008,3397.0,3396.2,0.33128]
[1719755014274,2.74973609,3397.0,3396.3,0.851]
[1719755014618,0.03000008,3396.9,3396.3,0.851]
[1719755018335,0.03000008,3396.9,3396.3,1.215408]
[1719755019071,0.03000008,3396.9,3396.3,0.364408]
[1719755019255,0.03000008,3396.9,3396.3,1.215408]
[1719755020329,0.03000008,3396.9,3396.3,0.851]
[1719755022480,0.03000008,3396.9,3396.0,2.4618]
[1719755022636,0.03000008,3396.9,3396.1,0.851]
[1719755022637,0.49793609,3396.9,3396.1,0.851]
[1719755023077,3.49793609,3396.9,3396.1,0.851]
[1719755023276,0.46793601,3396.8,3395.7,2.4618]
[1719755023488,0.03000008,3396.7,3396.1,0.851]
[1719755025881,0.46793601,3396.8,3396.1,0.851]
[1719755025882,0.49793609,3396.8,3396.1,0.851]
[1719755026727,0.49793609,3396.8,3396.3,0.851]
[1719755029730,0.49793609,3396.8,3395.8,0.24618]
[1719755029890,0.49793609,3396.8,3396.3,0.851]
[1719755031031,0.49793609,3396.8,3395.8,0.24618]
[1719755031032,0.03000008,3396.7,3396.1,0.851]
[1719755031390,0.03000008,3396.7,3396.3,0.851]
[1719755032159,0.46793601,3396.8,3396.3,0.851]
[1719755034811,0.03000008,3396.7,3396.3,0.851]
[1719755035011,0.49793609,3396.7,3396.3,0.851]
[1719755035212,0.46793601,3396.7,3396.3,0.851]
[1719755035408,2.35440008,3396.6,3395.5,2.3536]
[1719755035712,2.82233609,3396.6,3396.0,0.851]
[1719755040366,2.82233609,3396.6,3395.5,2.3536]
[1719755040516,2.82233609,3396.6,3396.0,0.851]
[1719755047129,10.33,3396.9,3396.2,0.851]
[1719755047330,10.33,3396.9,3396.4,0.851]
[1719755047560,10.79793601,3396.9,3396.4,0.851]
[1719755048280,10.79793601,3396.9,3396.2,0.851]
[1719755048484,10.79793601,3396.9,3396.2,1.10325896]
[1719755049751,10.79793601,3396.9,3396.4,0.851]
[1719755050889,0.43099566,3397.6,3396.8,0.851]
[1719755051188,0.43099566,3397.6,3396.5,2.52258138]
[1719755051189,0.03000008,3397.5,3396.6,0.05887415]
[1719755051361,0.03000008,3397.5,3396.9,0.851]
[1719755054047,2.365,3397.7,3396.9,0.851]
[1719755055302,0.03000008,3397.6,3396.9,0.851]
[1719755062014,0.03000008,3397.6,3396.6,0.25225814]
[1719755062219,2.365,3397.5,3396.8,0.851]
[1719755062435,0.03000008,3397.4,3396.7,0.27159581]
[1719755062594,2.365,3397.3,3396.2,2.4637]
[1719755062796,0.03000008,3397.2,3396.5,0.851]
[1719755063233,0.03000008,3397.2,3396.3,0.24637]
[1719755063234,2.365,3397.1,3396.3,0.24637]
[1719755063417,2.365,3396.9,3396.2,0.851]
[1719755064436,0.03000008,3396.8,3396.2,0.851]
[1719755067545,2.365,3396.9,3396.4,0.851]
[1719755081483,2.365,3396.9,3395.9,2.4637]
[1719755081484,2.365,3396.9,3396.6,0.851]
[1719755082270,5.86993601,3397.2,3396.8,0.851]
[1719755087594,5.86993601,3397.2,3396.6,0.851]
[1719755088189,0.03000008,3397.1,3396.6,0.851]
[1719755090550,5.86993601,3397.2,3396.6,0.851]
[1719755090951,5.86993601,3397.2,3396.8,0.851]
[1719755091147,3.0,3397.2,3397.0,0.851]
[1719755091553,5.36420008,3397.4,3397.0,0.851]
[1719755091961,5.36420008,3397.4,3396.6,2.3797]
[1719755092180,5.36420008,3397.4,3396.8,0.851]
[1719755093695,5.36420008,3397.4,3397.0,0.851]
[1719755093696,2.3342,3397.4,3397.0,0.851]
[1719755093899,3.0,3397.5,3397.2,0.851]
[1719755095125,3.0,3397.5,3397.4,0.851]
[1719755096882,3.03000008,3397.5,3395.7,2.3797]
[1719755097086,3.03000008,3397.5,3396.8,0.851]
[1719755097087,2.3344,3397.4,3396.8,0.851]
[1719755097280,2.77233601,3397.4,3396.8,0.851]
[1719755102145,2.77233601,3397.4,3397.0,0.851]
[1719755102818,3.0,3397.5,3397.0,0.851]
[1719755105325,3.0,3397.5,3397.2,0.851]
[1719755106868,3.0,3397.5,3396.9,2.4134]
[1719755107029,2.3344,3397.6,3397.2,0.851]
[1719755107833,3.0,3397.7,3397.5,0.851]
[1719755108239,1.26735639,3397.9,3397.5,0.851]
[1719755108240,3.03000008,3397.9,3397.5,0.851]
[1719755108645,3.46793609,3397.9,3397.3,0.851]
[1719755110589,3.43793601,3397.9,3397.5,0.851]
[1719755111372,3.43793601,3397.9,3397.7,0.851]
[1719755113815,3.43793601,3397.9,3397.4,0.2737261]
[1719755114034,3.46793609,3397.9,3397.3,0.851]
[1719755114671,3.43793601,3397.9,3397.3,0.851]
[1719755115682,3.46793609,3397.9,3397.3,0.851]
[1719755115880,2.72393601,3397.8,3397.1,0.851]
[1719755116213,0.03000008,3397.7,3397.1,0.851]
[1719755116417,0.03000008,3397.7,3396.7,2.4659]
[1719755116619,0.03000008,3397.7,3397.0,0.851]
[1719755117225,0.03000008,3397.7,3396.8,0.24659]
[1719755117226,0.03000008,3397.7,3397.2,0.851]
[1719755118019,2.75393609,3397.8,3397.2,0.851]
[1719755118992,2.72393601,3397.8,3397.2,1.18481]
[1719755119724,2.47393601,3397.8,3397.2,1.18481]
[1719755122623,0.43793601,3397.8,3397.4,0.851]
[1719755122826,0.43793601,3397.8,3397.4,1.218191]
[1719755124926,0.43793601,3397.8,3397.6,0.851]
[1719755126244,3.0,3397.9,3397.6,0.851]
[1719755128062,2.3568,3398.0,3397.6,0.851]
[1719755128246,2.4414,3398.3,3397.7,0.05886201]
[1719755128564,7.33,3398.4,3398.1,0.851]
[1719755128856,2.87933601,3398.6,3398.1,0.851]
[1719755129160,0.03000008,3398.5,3398.1,0.851]
[1719755129357,2.87933601,3398.6,3398.1,0.851]
[1719755129565,0.03000008,3398.5,3398.1,0.851]
[1719755130342,3.03000008,3398.5,3398.1,0.851]
[1719755133394,3.46793609,3398.5,3398.0,0.851]
[1719755135686,3.46793609,3398.5,3397.8,0.2436062]
[1719755135687,0.43793601,3398.4,3397.8,0.2436062]
[1719755135889,0.43793601,3398.4,3397.9,0.851]
[1719755136716,0.03000008,3398.3,3397.6,2.3772]
[1719755136868,0.03000008,3398.3,3397.7,0.851]
[1719755138803,2.47140008,3398.3,3397.7,0.851]
[1719755139018,0.03000008,3398.2,3397.7,1.17382]
[1719755139217,0.03000008,3398.2,3397.9,0.851]
[1719755140346,3.03000008,3398.3,3397.9,0.851]
[1719755140514,0.03000008,3398.3,3397.9,0.851]
[1719755150583,0.46793609,3398.3,3397.5,2.3772]
[1719755150813,0.46793609,3398.3,3397.8,0.851]
[1719755151676,2.4973,3398.2,3396.8,2.4123]
[1719755151876,0.03000008,3398.1,3396.8,2.4123]
[1719755152174,0.03000008,3398.1,3397.3,0.851]
[1719755152615,3.03000008,3398.1,3397.3,0.851]
[1719755154428,3.03000008,3398.1,3397.5,0.851]
[1719755155335,3.0,3398.1,3397.7,0.851]
[1719755155680,0.43793601,3398.2,3397.7,0.851]
[1719755156322,0.43793601,3398.2,3397.9,0.851]
[1719755156800,3.0,3398.3,3398.1,0.851]
[1719755156993,3.03000008,3398.4,3397.9,1.17733]
[1719755157320,3.03000008,3398.4,3397.9,0.851]
[1719755158045,3.46793609,3398.4,3397.6,2.4123]
[1719755158220,3.46793609,3398.4,3397.8,0.851]
[1719755159011,3.46793609,3398.4,3397.6,2.4123]
[1719755159250,0.43793601,3398.3,3397.8,0.851]
[1719755159453,0.03000008,3398.2,3397.8,0.851]
[1719755160451,0.46793609,3398.3,3397.8,0.851]
[1719755160633,0.03000008,3398.2,3397.8,0.851]
[1719755160836,0.46793609,3398.3,3397.8,0.851]
[1719755162426,0.46793609,3398.3,3397.8,1.17733]
[1719755162628,3.0,3398.4,3398.0,0.851]
[1719755163025,3.0,3398.4,3398.2,0.851]
[1719755163523,5.52730008,3398.8,3398.2,1.17733]
[1719755163810,5.52730008,3398.8,3398.2,0.851]
[1719755166237,3.03000008,3398.8,3398.2,0.851]
[1719755167315,3.0,3398.8,3398.6,0.851]
[1719755167945,3.0,3398.8,3398.4,0.851]
[1719755174736,0.03000008,3398.7,3398.4,0.851]
[1719755175686,3.0,3398.8,3398.4,0.851]
[1719755182675,3.03000008,3398.8,3398.1,0.05884928]
[1719755182895,0.03000008,3398.7,3398.3,0.851]
[1719755183413,0.03000008,3398.7,3398.0,2.728]
[1719755183569,0.03000008,3398.7,3398.3,0.851]
[1719755186273,3.43793601,3398.8,3398.3,0.851]
[1719755186666,3.46793609,3398.8,3398.3,0.851]
[1719755188038,0.03000008,3398.7,3398.3,0.851]
[1719755188373,2.4598,3398.6,3398.3,0.851]
[1719755190063,0.03000008,3398.7,3398.3,0.851]
[1719755193869,0.03000008,3398.7,3398.2,0.851]
[1719755202478,0.03000008,3398.7,3398.3,0.851]
[1719755206873,0.03000008,3398.7,3397.9,0.23536]
[1719755207074,0.03000008,3398.7,3398.2,0.851]
[1719755213502,0.03000008,3398.7,3397.9,0.23536]
[1719755213804,0.03000008,3398.7,3397.8,2.3536]
[1719755213805,0.03000008,3398.7,3398.2,0.851]
[1719755222315,0.03000008,3398.7,3397.8,2.3536]
[1719755222517,2.2767,3398.6,3397.5,2.2611]
[1719755222730,2.2767,3398.4,3397.8,0.851]
[1719755222939,0.03000008,3398.3,3397.8,0.851]
[1719755223667,0.30446369,3398.3,3397.3,2.2611]
[1719755223954,2.74463609,3398.2,3397.4,0.851]
[1719755224308,2.74463609,3398.2,3397.6,0.851]
[1719755225565,2.2767,3398.2,3397.8,0.851]
[1719755225863,0.03000008,3398.3,3398.0,0.851]
[1719755226023,0.03000008,3398.4,3398.0,0.851]
[1719755226762,0.03000008,3398.4,3397.8,0.851]
[1719755226918,0.03000008,3398.4,3396.4,12.11646792]
[1719755227124,0.03000008,3398.4,3397.8,0.851]
[1719755227355,2.3329,3398.3,3397.8,0.851]
[1719755227552,0.03000008,3398.2,3397.8,0.851]
[1719755229396,0.03000008,3398.2,3397.4,2.3518]
[1719755229549,0.03000008,3398.2,3397.6,0.851]
[1719755230087,0.03000008,3398.2,3397.5,0.23518]
[1719755230290,0.03000008,3398.2,3397.6,0.851]
[1719755231755,2.3329,3398.1,3397.2,2.3518]
[1719755231974,0.03000008,3398.0,3397.5,0.851]
[1719755232855,0.03000008,3398.0,3397.0,2.3518]
[1719755233117,0.03000008,3398.0,3397.5,0.851]
[1719755233656,7.76793601,3398.3,3397.5,0.851]
[1719755233657,2.3329,3397.9,3397.5,0.851]
[1719755233995,0.03000008,3397.8,3397.0,2.3518]
[1719755234208,0.03000008,3397.8,3397.4,0.851]
[1719755234870,0.03000008,3397.8,3397.3,0.851]
[1719755235300,2.3329,3397.7,3397.3,0.851]
[1719755235458,0.03000008,3397.6,3397.3,0.851]
[1719755236077,0.03000008,3397.6,3396.7,2.8247184]
[1719755236252,0.03000008,3397.6,3397.3,0.851]
[1719755236797,0.03000008,3397.6,3397.1,0.851]
[1719755237864,0.03000008,3397.6,3397.3,0.851]
[1719755239960,2.3329,3397.7,3397.5,0.851]
[1719755240298,2.36290008,3398.0,3397.6,0.851]
[1719755240673,2.36290008,3398.0,3397.1,2.3518]
[1719755240929,2.36290008,3398.0,3397.6,0.851]
[1719755242082,3.0,3398.2,3397.8,0.851]
[1719755242083,3.03000008,3398.2,3397.8,0.851]
[1719755242482,3.0,3398.1,3397.8,0.851]
[1719755242682,0.03000008,3398.2,3397.8,0.851]
[1719755243791,0.03000008,3398.2,3397.2,0.23518]
[1719755244001,0.03000008,3398.2,3397.8,0.851]
[1719755246340,2.3329,3398.0,3397.5,0.851]
[1719755246632,0.03000008,3397.9,3397.5,0.851]
[1719755253377,0.03000008,3397.9,3397.7,0.851]
[1719755254283,0.03000008,3398.0,3397.7,0.851]
[1719755255260,0.03000008,3398.1,3397.7,0.851]
[1719755262886,0.03000008,3398.1,3397.8,0.851]
[1719755265403,0.03000008,3398.4,3397.8,0.851]
[1719755266874,2.3869,3398.3,3397.8,0.851]
[1719755267059,0.03000008,3398.2,3397.8,0.851]
[1719755270738,0.03000008,3398.3,3398.1,0.851]
[1719755270943,0.03000008,3398.4,3398.1,0.851]
[1719755271930,3.0,3398.5,3398.1,1.18143]
[1719755271931,0.03000008,3398.5,3398.1,1.18143]
[1719755272089,7.33,3398.6,3398.3,0.851]
[1719755272285,7.33,3398.6,3398.5,0.851]
[1719755272489,2.2786,3398.9,3398.5,0.851]
[1719755272690,0.03000008,3398.8,3398.5,0.851]
[1719755274749,0.03000008,3398.8,3398.3,0.851]
[1719755274946,0.03000008,3398.8,3397.9,2.4533]
[1719755274947,0.03000008,3398.8,3398.7,0.851]
[1719755275260,5.30860008,3398.9,3398.7,0.851]
[1719755275825,2.30860008,3398.9,3398.7,0.851]
[1719755276635,19.63,3399.0,3398.7,0.851]
[1719755276830,7.33,3399.0,3398.9,0.851]
[1719755277151,7.33,3399.0,3398.7,0.851]
[1719755277321,0.03000008,3398.9,3397.3,2.4533]
[1719755277521,0.03000008,3398.9,3398.3,0.851]
[1719755278211,0.03000008,3398.9,3398.5,0.851]
[1719755278457,7.33,3399.0,3398.3,0.33043]
[1719755278665,7.33,3399.0,3398.8,0.851]
[1719755279166,7.33,3399.0,3398.9,0.851]
[1719755279823,7.33,3399.0,3398.5,2.4533]
[1719755280025,7.33,3399.0,3398.9,0.851]
[1719755280528,10.04653601,3399.0,3398.2,2.4533]
[1719755280777,10.04653601,3399.0,3398.5,0.851]
[1719755280778,0.03000008,3398.9,3398.5,0.851]
[1719755281242,7.76793601,3399.0,3398.7,0.851]
[1719755281429,7.76793601,3399.0,3398.9,0.851]
[1719755281430,7.33,3399.0,3398.9,0.851]
[1719755282857,3.0,3399.3,3398.9,0.851]
[1719755283162,3.0,3399.3,3397.6,0.43]
[1719755283163,0.03000008,3399.2,3397.6,0.43]
[1719755283343,2.2786,3399.1,3398.0,2.4533]
[1719755283544,0.46793609,3399.0,3398.3,0.851]
[1719755284558,0.46793609,3399.0,3398.5,0.851]
[1719755285358,0.46793609,3399.0,3398.7,0.851]
[1719755285520,0.03000008,3399.0,3398.7,0.851]
[1719755290153,0.03000008,3399.2,3398.7,0.851]
[1719755290473,2.46980008,3399.2,3398.7,0.851]
[1719755292103,2.46980008,3399.2,3398.1,0.24533]
[1719755292398,2.90773609,3399.2,3398.0,2.4533]
[1719755292602,2.90773609,3399.2,3398.3,0.851]
[1719755293057,2.90773609,3399.2,3398.3,0.999]
[1719755293454,2.87773601,3399.2,3398.3,0.999]
[1719755293897,0.43793601,3399.1,3398.3,0.999]
[1719755295325,0.43793601,3399.1,3398.3,0.148]
[1719755295483,2.4398,3399.0,3398.4,0.851]
[1719755295677,2.87773601,3399.0,3398.4,0.851]
[1719755295985,0.43793601,3398.9,3398.3,0.148]
[1719755296191,2.4398,3398.8,3398.3,0.148]
[1719755297686,2.87773601,3398.8,3398.3,0.148]
[1719755301233,1.28893601,3398.7,3398.3,0.148]
[1719755301381,2.4398,3398.6,3398.3,0.148]
[1719755301585,2.87773601,3398.6,3398.3,0.148]
[1719755302025,2.4398,3398.6,3398.3,0.148]
[1719755302183,0.43793601,3398.5,3398.3,0.148]
[1719755303446,0.75011507,3398.5,3398.3,0.148]
[1719755303778,2.4398,3398.4,3398.3,0.148]
[1719755303977,5.87773601,3398.4,3398.3,0.148]
[1719755306127,5.4398,3398.4,3398.3,0.148]
[1719755306334,2.4398,3398.4,3398.3,0.148]
[1719755312443,3.0,3398.6,3398.3,0.148]
[1719755312648,0.43793601,3398.7,3398.3,0.148]
[1719755312855,3.43793601,3398.7,3398.3,0.148]
[1719755313146,4.11184735,3398.7,3398.3,0.148]
[1719755321516,3.43793601,3398.7,3398.3,0.148]
[1719755327438,3.0,3398.7,3398.3,0.148]
[1719755337259,0.43793601,3398.8,3398.3,0.148]
[1719755343424,0.21420882,3398.9,3398.3,0.148]
[1719755344223,0.21420882,3399.0,3398.3,0.148]
[1719755344425,0.65214483,3399.0,3398.3,0.148]
[1719755345430,0.21420394,3398.9,3398.3,0.148]
[1719755345612,0.43793601,3399.0,3398.3,0.148]
[1719755345808,0.65213996,3399.0,3398.4,2.2567]
[1719755345994,0.21420395,3398.9,3398.4,2.2567]
[1719755346197,0.21420395,3399.1,3398.4,2.2567]
[1719755346408,0.21420395,3399.1,3398.5,0.32557]
[1719755348448,3.0,3399.2,3398.5,0.32557]
[1719755348612,0.21419082,3399.1,3398.5,0.32557]
[1719755348807,0.43793601,3399.1,3398.5,0.32557]
[1719755349030,0.65212683,3399.1,3398.5,0.32557]
[1719755349352,0.43793601,3399.0,3398.5,0.32557]
[1719755349650,0.65212683,3399.0,3398.4,2.2567]
[1719755349799,0.21420209,3398.9,3398.4,2.2567]
[1719755350146,0.6521381,3399.0,3398.4,2.2567]
[1719755351740,0.2142033,3398.9,3398.4,2.2567]
[1719755351950,0.2142033,3398.9,3398.4,2.58227]
[1719755352247,0.86634267,3398.9,3398.4,2.58227]
[1719755352399,0.21420336,3398.8,3398.4,2.58227]
[1719755353898,0.65213937,3398.8,3398.3,0.148]
[1719755354099,0.43793601,3398.7,3398.3,0.148]
[1719755354557,0.65213937,3398.7,3398.3,0.148]
[1719755354866,0.43793601,3398.7,3398.3,0.148]
[1719755355005,0.65214487,3398.7,3398.3,0.148]
[1719755358111,0.43793601,3398.7,3398.3,0.148]
[1719755358456,0.65215415,3398.7,3398.3,0.148]
[1719755359961,0.21421861,3398.6,3398.3,0.148]
[1719755360163,0.65215462,3398.7,3398.3,0.148]
[1719755361376,0.43793601,3398.7,3398.3,0.148]
[1719755361661,0.65215487,3398.7,3398.3,0.148]
[1719755361858,0.21421887,3398.6,3398.3,0.148]
[1719755362168,0.65215488,3398.7,3398.3,0.148]
[1719755363457,0.851,3398.4,3398.3,0.148]
[1719755363756,1.06521887,3398.4,3398.3,0.148]
[1719755364120,4.06521887,3398.4,3398.3,0.148]
[1719755364550,4.5031799,3398.4,3398.3,0.148]
[1719755367623,4.28893601,3398.4,3398.3,0.148]
[1719755367852,5.23177046,3398.4,3398.3,0.148]
[1719755370240,4.38077046,3398.4,3398.3,0.148]
[1719755370880,4.16652216,3398.4,3398.3,0.148]
[1719755371046,4.38076866,3398.4,3398.3,0.148]
[1719755371744,1.38076866,3398.4,3398.3,0.148]
[1719755371994,0.94283265,3398.4,3398.3,0.148]
[1719755373383,0.2142465,3398.4,3398.3,0.148]
[1719755373601,0.2142465,3398.5,3398.3,0.148]
[1719755374136,0.43793601,3398.5,3398.3,0.148]
[1719755374343,0.65217894,3398.5,3398.3,0.148]
[1719755374569,1.33456683,3398.5,3398.3,0.148]
[1719755374770,3.82387812,3398.4,3398.3,0.148]
[1719755375041,6.82387812,3398.4,3398.3,0.148]
[1719755377454,6.82389208,3398.4,3398.3,0.148]
[1719755380600,6.8238916,3398.4,3398.3,0.148]
[1719755380755,7.61340813,3398.4,3398.3,0.148]
[1719755381249,3.21425559,3398.4,3398.3,0.148]
[1719755381897,0.21425559,3398.4,3398.3,0.148]
[1719755382066,3.0,3398.4,3398.3,0.148]
[1719755382423,0.21425559,3398.4,3398.3,0.148]
[1719755382566,0.21425559,3398.5,3398.3,0.148]
[1719755383736,0.851,3398.6,3398.3,0.148]
[1719755383897,0.21423484,3398.5,3398.3,0.148]
[1719755384099,0.65217085,3398.5,3398.3,0.148]
[1719755384603,0.65217085,3398.5,3398.3,2.5492]
[1719755386960,0.43793601,3398.5,3398.3,2.5492]
[1719755387204,0.65216421,3398.5,3398.3,2.5492]
[1719755387414,3.0,3398.8,3398.3,2.5492]
[1719755387415,0.2142282,3398.4,3398.3,2.5492]
[1719755387567,0.21422578,3398.7,3398.3,2.5492]